[Event "Early-Titled-Tuesday-Blitz-May-28-2024"]
[Site "Chess.com"]
[Date "2024.05.28"]
[Round "8"]
[White "linesman39"]
[Black "secrethawk1"]
[Result "0-1"]
[WhiteElo "2270"]
[BlackElo "2410"]
[TimeControl "180+1"]
[EndTime "9:31:30 PDT"]
[Termination "secrethawk1 won by checkmate"]

1. d4 {[%clk 0:03:00.9]} 1... c6 {[%clk 0:03:00.9]} 2. c4 {[%clk 0:02:59]} 2...
d5 {[%clk 0:03:01.8]} 3. cxd5 {[%clk 0:02:58]} 3... cxd5 {[%clk 0:03:02.7]} 4.
Bg5 {[%clk 0:02:57.6]} 4... Nc6 {[%clk 0:03:03.1]} 5. Nc3 {[%clk 0:02:56.6]}
5... Nf6 {[%clk 0:03:02.6]} 6. Bxf6 {[%clk 0:02:55.8]} 6... exf6 {[%clk
0:03:03.5]} 7. e3 {[%clk 0:02:56]} 7... Be7 {[%clk 0:03:03]} 8. g3 {[%clk
0:02:55.7]} 8... O-O {[%clk 0:03:03.5]} 9. Bg2 {[%clk 0:02:54.7]} 9... Be6
{[%clk 0:03:04.4]} 10. Nge2 {[%clk 0:02:53.4]} 10... Bd6 {[%clk 0:03:00.4]} 11.
O-O {[%clk 0:02:47.6]} 11... Ne7 {[%clk 0:02:57.8]} 12. Rc1 {[%clk 0:02:46.2]}
12... a6 {[%clk 0:02:57.2]} 13. Qb3 {[%clk 0:02:41.1]} 13... Qd7 {[%clk
0:02:54.7]} 14. Nxd5 {[%clk 0:02:37.9]} 14... Bxg3 {[%clk 0:02:40.5]} 15. Nxe7+
{[%clk 0:02:27.1]} 15... Qxe7 {[%clk 0:02:38.8]} 16. d5 {[%clk 0:02:27.1]} 16...
Bxh2+ {[%clk 0:02:35.4]} 17. Kxh2 {[%clk 0:02:25.4]} 17... Qd6+ {[%clk
0:02:35.8]} 18. Ng3 {[%clk 0:02:23.7]} 18... Bg4 {[%clk 0:02:22.9]} 19. f4
{[%clk 0:02:10.2]} 19... h5 {[%clk 0:02:19.2]} 20. Bf3 {[%clk 0:02:04]} 20... f5
{[%clk 0:02:13.2]} 21. Bxg4 {[%clk 0:01:59.1]} 21... fxg4 {[%clk 0:02:02.2]} 22.
Nf5 {[%clk 0:01:57.2]} 22... Qf6 {[%clk 0:02:00.3]} 23. e4 {[%clk 0:01:55.7]}
23... g6 {[%clk 0:01:58.2]} 24. Ng3 {[%clk 0:01:50.2]} 24... Qh4+ {[%clk
0:01:56.5]} 25. Kg2 {[%clk 0:01:50]} 25... Qh3+ {[%clk 0:01:55.9]} 26. Kg1
{[%clk 0:01:50]} 26... h4 {[%clk 0:01:52.1]} 27. Ne2 {[%clk 0:01:45.7]} 27... g3
{[%clk 0:01:49.3]} 28. Rf2 {[%clk 0:01:36.6]} 28... gxf2+ {[%clk 0:01:47]} 29.
Kxf2 {[%clk 0:01:37.5]} 29... Qh2+ {[%clk 0:01:44.4]} 30. Ke3 {[%clk 0:01:37.6]}
30... Rfe8 {[%clk 0:01:39.2]} 31. Qd3 {[%clk 0:01:35.2]} 31... h3 {[%clk
0:01:30.3]} 32. Kd4 {[%clk 0:01:31.9]} 32... Qf2+ {[%clk 0:01:23.8]} 33. Qe3
{[%clk 0:01:29.5]} 33... Qxe3+ {[%clk 0:01:14.2]} 34. Kxe3 {[%clk 0:01:28.6]}
34... Rad8 {[%clk 0:01:11.4]} 35. Rh1 {[%clk 0:01:25.8]} 35... Rxd5 {[%clk
0:01:08.9]} 36. Rxh3 {[%clk 0:01:25.5]} 36... Rb5 {[%clk 0:01:05.6]} 37. b3
{[%clk 0:01:24]} 37... Ra5 {[%clk 0:01:02.7]} 38. Nc3 {[%clk 0:01:21.4]} 38...
Rc5 {[%clk 0:00:57.1]} 39. Kd4 {[%clk 0:01:19.5]} 39... Rh5 {[%clk 0:00:41.4]}
40. Rg3 {[%clk 0:01:16.2]} 40... Kg7 {[%clk 0:00:38.9]} 41. Nd5 {[%clk
0:01:13.6]} 41... Rh1 {[%clk 0:00:33.7]} 42. Rd3 {[%clk 0:01:12.1]} 42... Re1
{[%clk 0:00:23.2]} 43. e5 {[%clk 0:01:10.6]} 43... Rd8 {[%clk 0:00:19.6]} 44. a4
{[%clk 0:01:09.5]} 44... Rf1 {[%clk 0:00:16.1]} 45. Ke4 {[%clk 0:01:08.4]} 45...
Re1+ {[%clk 0:00:13.5]} 46. Kd4 {[%clk 0:01:07.2]} 46... Rc1 {[%clk 0:00:13.7]}
47. Ke3 {[%clk 0:01:03.8]} 47... Rc5 {[%clk 0:00:13.6]} 48. Ke4 {[%clk
0:00:59.8]} 48... Rc6 {[%clk 0:00:13]} 49. b4 {[%clk 0:00:55.9]} 49... Rc4+
{[%clk 0:00:11.5]} 50. Ke3 {[%clk 0:00:55.9]} 50... Rc2 {[%clk 0:00:10.7]} 51.
b5 {[%clk 0:00:54.9]} 51... axb5 {[%clk 0:00:10.2]} 52. axb5 {[%clk 0:00:55.8]}
52... Rc5 {[%clk 0:00:08.9]} 53. Nc3 {[%clk 0:00:43.7]} 53... Rxd3+ {[%clk
0:00:09.8]} 54. Kxd3 {[%clk 0:00:44]} 54... g5 {[%clk 0:00:08.8]} 55. Kd4 {[%clk
0:00:43]} 55... Rc8 {[%clk 0:00:05.5]} 56. fxg5 {[%clk 0:00:40.9]} 56... Rd8+
{[%clk 0:00:05.2]} 57. Nd5 {[%clk 0:00:40.3]} 57... Kg6 {[%clk 0:00:04.8]} 58.
Kc5 {[%clk 0:00:40.1]} 58... Kxg5 {[%clk 0:00:04.9]} 59. Nc7 {[%clk 0:00:39.7]}
59... Kf5 {[%clk 0:00:04.3]} 60. Kb6 {[%clk 0:00:39.5]} 60... Kxe5 {[%clk
0:00:03.5]} 61. Kxb7 {[%clk 0:00:39.7]} 61... f5 {[%clk 0:00:02.7]} 62. Kc6
{[%clk 0:00:39.1]} 62... f4 {[%clk 0:00:02.3]} 63. b6 {[%clk 0:00:38.4]} 63...
f3 {[%clk 0:00:02.5]} 64. Nb5 {[%clk 0:00:38]} 64... f2 {[%clk 0:00:02]} 65. Nd4
{[%clk 0:00:38.4]} 65... Rxd4 {[%clk 0:00:01.7]} 66. b7 {[%clk 0:00:37.2]} 66...
Rb4 {[%clk 0:00:01.8]} 67. Kc7 {[%clk 0:00:32.7]} 67... Rxb7+ {[%clk 0:00:01.7]}
68. Kxb7 {[%clk 0:00:32.5]} 68... f1=Q {[%clk 0:00:02.6]} 69. Kc7 {[%clk
0:00:32.6]} 69... Qd3 {[%clk 0:00:03.5]} 70. Kc6 {[%clk 0:00:32.5]} 70... Qd4
{[%clk 0:00:04.4]} 71. Kc7 {[%clk 0:00:32.7]} 71... Qd5 {[%clk 0:00:05.3]} 72.
Kb6 {[%clk 0:00:32.8]} 72... Kd4 {[%clk 0:00:06.2]} 73. Kc7 {[%clk 0:00:32.3]}
73... Kc4 {[%clk 0:00:07.1]} 74. Kb6 {[%clk 0:00:32.4]} 74... Qd6+ {[%clk
0:00:06.8]} 75. Kb7 {[%clk 0:00:31.1]} 75... Kb5 {[%clk 0:00:06.9]} 76. Kc8
{[%clk 0:00:31.2]} 76... Qe7 {[%clk 0:00:06.8]} 77. Kb8 {[%clk 0:00:31.2]} 77...
Kb6 {[%clk 0:00:07.1]} 78. Kc8 {[%clk 0:00:31.3]} 78... Qc7# {[%clk 0:00:07.2]}
0-1

[Event "Early-Titled-Tuesday-Blitz-May-28-2024"]
[Site "Chess.com"]
[Date "2024.05.28"]
[Round "8"]
[White "GrotBchess"]
[Black "Qvalda"]
[Result "1-0"]
[WhiteElo "2580"]
[BlackElo "2404"]
[TimeControl "180+1"]
[EndTime "9:31:32 PDT"]
[Termination "GrotBchess won on time"]

1. e4 {[%clk 0:03:00]} 1... d5 {[%clk 0:02:59.6]} 2. exd5 {[%clk 0:02:58.8]}
2... Qxd5 {[%clk 0:03:00.5]} 3. Nf3 {[%clk 0:02:58.8]} 3... Bg4 {[%clk
0:02:59.5]} 4. Be2 {[%clk 0:02:58.8]} 4... Nc6 {[%clk 0:02:59.2]} 5. h3 {[%clk
0:02:59]} 5... Bxf3 {[%clk 0:02:59.5]} 6. Bxf3 {[%clk 0:02:59.6]} 6... Qe6+
{[%clk 0:03:00.3]} 7. Qe2 {[%clk 0:03:00]} 7... Nd4 {[%clk 0:03:01]} 8. Qxe6
{[%clk 0:02:59.8]} 8... Nxf3+ {[%clk 0:03:01.7]} 9. gxf3 {[%clk 0:03:00.2]} 9...
fxe6 {[%clk 0:03:02.6]} 10. d3 {[%clk 0:02:59.9]} 10... g6 {[%clk 0:03:03.3]}
11. Bd2 {[%clk 0:03:00.1]} 11... Bg7 {[%clk 0:03:02.1]} 12. Bc3 {[%clk
0:03:00.4]} 12... Bxc3+ {[%clk 0:02:57.3]} 13. Nxc3 {[%clk 0:03:01.3]} 13... Nh6
{[%clk 0:02:57.6]} 14. O-O-O {[%clk 0:03:01.3]} 14... Nf5 {[%clk 0:02:57.3]} 15.
Rde1 {[%clk 0:03:01.3]} 15... Kf7 {[%clk 0:02:55.4]} 16. Ne4 {[%clk 0:02:59.3]}
16... Ng7 {[%clk 0:02:44.6]} 17. Ng5+ {[%clk 0:02:55.9]} 17... Kf6 {[%clk
0:02:44.8]} 18. h4 {[%clk 0:02:54.8]} 18... h6 {[%clk 0:02:40.6]} 19. Ne4+
{[%clk 0:02:54.1]} 19... Kf7 {[%clk 0:02:40.9]} 20. Nc5 {[%clk 0:02:53.7]} 20...
b6 {[%clk 0:02:38.2]} 21. Nd7 {[%clk 0:02:53.7]} 21... Nf5 {[%clk 0:02:28]} 22.
Ne5+ {[%clk 0:02:46.2]} 22... Kf6 {[%clk 0:02:24.6]} 23. Re4 {[%clk 0:02:43.5]}
23... g5 {[%clk 0:01:57.7]} 24. hxg5+ {[%clk 0:02:40.7]} 24... hxg5 {[%clk
0:01:56.3]} 25. Rhe1 {[%clk 0:02:35.9]} 25... Ng7 {[%clk 0:01:37.1]} 26. f4
{[%clk 0:02:28]} 26... gxf4 {[%clk 0:01:30]} 27. Rxf4+ {[%clk 0:02:28.9]} 27...
Nf5 {[%clk 0:01:29.5]} 28. Ng4+ {[%clk 0:02:17.2]} 28... Kf7 {[%clk 0:01:23.1]}
29. Rfe4 {[%clk 0:02:11.3]} 29... Ng7 {[%clk 0:01:14.9]} 30. Ne5+ {[%clk
0:02:09.7]} 30... Kf6 {[%clk 0:01:12.8]} 31. Rg1 {[%clk 0:02:09.4]} 31... Nh5
{[%clk 0:00:30.1]} 32. Ng4+ {[%clk 0:01:25.1]} 32... Kf7 {[%clk 0:00:25.9]} 33.
Rge1 {[%clk 0:01:09.8]} 33... Ng7 {[%clk 0:00:17.6]} 34. a4 {[%clk 0:01:07]}
34... Rag8 {[%clk 0:00:14.6]} 35. Ne5+ {[%clk 0:01:06.9]} 35... Ke8 {[%clk
0:00:12.9]} 36. Nc6 {[%clk 0:01:05.8]} 36... a5 {[%clk 0:00:11.6]} 37. Nd4
{[%clk 0:01:05.8]} 37... Kd7 {[%clk 0:00:10.3]} 38. Nxe6 {[%clk 0:01:05.2]}
38... Nxe6 {[%clk 0:00:11.2]} 39. Rxe6 {[%clk 0:01:05.4]} 39... Rg7 {[%clk
0:00:10.6]} 40. f4 {[%clk 0:01:04.9]} 40... Rh4 {[%clk 0:00:09.8]} 41. R6e4
{[%clk 0:01:04.8]} 41... Rh2 {[%clk 0:00:09.6]} 42. R1e2 {[%clk 0:01:02.7]}
42... Rg1+ {[%clk 0:00:08.5]} 43. Kd2 {[%clk 0:01:01.2]} 43... Rxe2+ {[%clk
0:00:07.7]} 44. Rxe2 {[%clk 0:01:01.7]} 44... Rf1 {[%clk 0:00:07.7]} 45. Re4
{[%clk 0:01:00.8]} 45... Rf2+ {[%clk 0:00:07.9]} 46. Kc3 {[%clk 0:01:01]} 46...
Kd6 {[%clk 0:00:08.3]} 47. b3 {[%clk 0:01:01]} 47... e6 {[%clk 0:00:08.7]} 48.
Rd4+ {[%clk 0:00:57.9]} 48... Kc6 {[%clk 0:00:07.6]} 49. Rc4+ {[%clk 0:00:55.4]}
49... Kd6 {[%clk 0:00:07.7]} 50. b4 {[%clk 0:00:55.2]} 50... axb4+ {[%clk
0:00:07.5]} 51. Kxb4 {[%clk 0:00:55.7]} 51... Kd7 {[%clk 0:00:06.7]} 52. a5
{[%clk 0:00:53.5]} 52... bxa5+ {[%clk 0:00:06.3]} 53. Kxa5 {[%clk 0:00:54]}
53... Kd6 {[%clk 0:00:07.2]} 54. Kb5 {[%clk 0:00:53.9]} 54... Rf1 {[%clk
0:00:07.4]} 55. Rc6+ {[%clk 0:00:53.1]} 55... Kd7 {[%clk 0:00:07]} 56. Rc4
{[%clk 0:00:53.2]} 56... Kd6 {[%clk 0:00:07]} 57. Rd4+ {[%clk 0:00:53.3]} 57...
Ke7 {[%clk 0:00:04.5]} 58. Kc6 {[%clk 0:00:52.6]} 58... Rc1 {[%clk 0:00:03.7]}
59. c4 {[%clk 0:00:52.7]} 59... Re1 {[%clk 0:00:02.5]} 60. Kxc7 {[%clk
0:00:52.5]} 60... Ra1 {[%clk 0:00:02.6]} 61. c5 {[%clk 0:00:50.7]} 61... Rb1
{[%clk 0:00:01.7]} 62. c6 {[%clk 0:00:50.4]} 62... Rb2 {[%clk 0:00:02]} 63. Kc8
{[%clk 0:00:49.7]} 63... Rb3 {[%clk 0:00:01.6]} 64. c7 {[%clk 0:00:49.5]} 64...
Rb2 {[%clk 0:00:01.1]} 65. Rd7+ {[%clk 0:00:46.3]} 65... Ke8 {[%clk 0:00:01]}
66. Rh7 {[%clk 0:00:42.8]} 66... Rb3 {[%clk 0:00:01]} 67. d4 {[%clk 0:00:42.2]}
67... Rb5 {[%clk 0:00:01.1]} 68. Rh6 {[%clk 0:00:40.2]} 68... Ke7 {[%clk
0:00:01]} 69. Rh2 {[%clk 0:00:37.3]} 69... Rb4 {[%clk 0:00:01.4]} 70. Rd2 {[%clk
0:00:36.1]} 70... Ke8 {[%clk 0:00:01.9]} 71. d5 {[%clk 0:00:36.2]} 71... exd5
{[%clk 0:00:02.4]} 72. Rxd5 {[%clk 0:00:36.7]} 72... Rxf4 {[%clk 0:00:02.7]} 73.
Kb7 {[%clk 0:00:35.3]} 73... Rb4+ {[%clk 0:00:02.8]} 74. Kc6 {[%clk 0:00:35.5]}
74... Rc4+ {[%clk 0:00:02.4]} 75. Kb7 {[%clk 0:00:32.2]} 75... Rb4+ {[%clk
0:00:02.4]} 76. Kc8 {[%clk 0:00:32.7]} 76... Rb1 {[%clk 0:00:02]} 77. Re5+
{[%clk 0:00:32.9]} 77... Kf7 {[%clk 0:00:01.9]} 78. Kd7 {[%clk 0:00:33.2]} 78...
Rd1+ {[%clk 0:00:01.6]} 79. Kc6 {[%clk 0:00:33.3]} 79... Rc1+ {[%clk 0:00:01]}
80. Rc5 {[%clk 0:00:33.8]} 80... Ra1 {[%clk 0:00:01]} 81. c8=Q {[%clk
0:00:33.1]} 81... Ra6+ {[%clk 0:00:01.6]} 82. Qxa6 {[%clk 0:00:32.1]} 1-0

[Event "Early-Titled-Tuesday-Blitz-May-28-2024"]
[Site "Chess.com"]
[Date "2024.05.28"]
[Round "8"]
[White "MathiasWomacka"]
[Black "GMthekingindian"]
[Result "1/2-1/2"]
[WhiteElo "2505"]
[BlackElo "2354"]
[TimeControl "180+1"]
[EndTime "9:31:39 PDT"]
[Termination "Game drawn - insufficient material"]

1. e4 {[%clk 0:03:00.9]} 1... c5 {[%clk 0:02:57.2]} 2. Nf3 {[%clk 0:03:00.2]}
2... e6 {[%clk 0:02:56.9]} 3. d4 {[%clk 0:03:00.5]} 3... cxd4 {[%clk 0:02:57.8]}
4. Nxd4 {[%clk 0:03:00.6]} 4... Nf6 {[%clk 0:02:57.7]} 5. Nc3 {[%clk 0:02:59.6]}
5... Nc6 {[%clk 0:02:58.3]} 6. Ndb5 {[%clk 0:02:58.5]} 6... Bb4 {[%clk
0:02:56.7]} 7. a3 {[%clk 0:02:57.5]} 7... Bxc3+ {[%clk 0:02:57.2]} 8. Nxc3
{[%clk 0:02:58.2]} 8... d5 {[%clk 0:02:58.1]} 9. exd5 {[%clk 0:02:57.2]} 9...
exd5 {[%clk 0:02:59]} 10. Bd3 {[%clk 0:02:57]} 10... O-O {[%clk 0:02:58.7]} 11.
O-O {[%clk 0:02:57.6]} 11... Bg4 {[%clk 0:02:59.3]} 12. f3 {[%clk 0:02:55]}
12... Bh5 {[%clk 0:02:59.7]} 13. Bg5 {[%clk 0:02:52.9]} 13... Qb6+ {[%clk
0:02:50.5]} 14. Kh1 {[%clk 0:02:52.8]} 14... Ne4 {[%clk 0:02:51]} 15. Nxe4
{[%clk 0:02:45.1]} 15... dxe4 {[%clk 0:02:51.3]} 16. Bxe4 {[%clk 0:02:45.6]}
16... Qxb2 {[%clk 0:02:51.8]} 17. Qd6 {[%clk 0:02:27.8]} 17... Bg6 {[%clk
0:02:39.9]} 18. Rab1 {[%clk 0:02:17.4]} 18... Qd4 {[%clk 0:02:11]} 19. Qxd4
{[%clk 0:02:13.1]} 19... Nxd4 {[%clk 0:02:11.2]} 20. Bxb7 {[%clk 0:02:06.9]}
20... Rab8 {[%clk 0:01:53.2]} 21. Bf4 {[%clk 0:01:43.6]} 21... Rbd8 {[%clk
0:01:51.7]} 22. Rb4 {[%clk 0:01:29.1]} 22... Nxc2 {[%clk 0:01:35.4]} 23. Ra4
{[%clk 0:01:29]} 23... Rd3 {[%clk 0:01:30.1]} 24. Rxa7 {[%clk 0:01:19.6]} 24...
Rxa3 {[%clk 0:01:25.9]} 25. Rxa3 {[%clk 0:01:19.2]} 25... Nxa3 {[%clk
0:01:25.9]} 26. Bd6 {[%clk 0:01:18]} 26... Nb5 {[%clk 0:00:57.1]} 27. Bxf8
{[%clk 0:01:17.2]} 27... Kxf8 {[%clk 0:00:58]} 28. Rd1 {[%clk 0:01:12.3]} 28...
Ke7 {[%clk 0:00:56.8]} 29. g4 {[%clk 0:01:03]} 29... Nc7 {[%clk 0:00:53.1]} 30.
Kg2 {[%clk 0:00:59.9]} 30... Ne6 {[%clk 0:00:53]} 31. Kg3 {[%clk 0:00:59.5]}
31... h5 {[%clk 0:00:44.7]} 32. Bc6 {[%clk 0:00:55.9]} 32... hxg4 {[%clk
0:00:44.4]} 33. fxg4 {[%clk 0:00:56.2]} 33... f5 {[%clk 0:00:41.7]} 34. Rd7+
{[%clk 0:00:45.5]} 34... Kf6 {[%clk 0:00:40.9]} 35. Bd5 {[%clk 0:00:45.6]} 35...
fxg4 {[%clk 0:00:02]} 36. Bxe6 {[%clk 0:00:44.9]} 36... Kxe6 {[%clk 0:00:02.9]}
37. Rxg7 {[%clk 0:00:44.6]} 37... Kf6 {[%clk 0:00:03.8]} 38. Ra7 {[%clk
0:00:40.1]} 38... Bf5 {[%clk 0:00:03.3]} 39. Kf4 {[%clk 0:00:39.5]} 39... Be6
{[%clk 0:00:02]} 40. Ra6 {[%clk 0:00:38.5]} 40... Kf7 {[%clk 0:00:01.3]} 41. Kg5
{[%clk 0:00:38.4]} 41... Ke7 {[%clk 0:00:01]} 42. Ra7+ {[%clk 0:00:30]} 42...
Kd6 {[%clk 0:00:01]} 43. Kf6 {[%clk 0:00:29.9]} 43... Bd7 {[%clk 0:00:01.5]} 44.
Ra1 {[%clk 0:00:27.3]} 44... Bc6 {[%clk 0:00:01.4]} 45. Rd1+ {[%clk 0:00:25.3]}
45... Kc5 {[%clk 0:00:01.3]} 46. Kg5 {[%clk 0:00:23.5]} 46... Bf3 {[%clk
0:00:01.6]} 47. Rd2 {[%clk 0:00:20.6]} 47... Kc4 {[%clk 0:00:01.9]} 48. h4
{[%clk 0:00:18.3]} 48... gxh3 {[%clk 0:00:01.7]} 49. Kf4 {[%clk 0:00:16.9]}
49... Bd5 {[%clk 0:00:01]} 50. Kg3 {[%clk 0:00:17.8]} 50... Kc5 {[%clk 0:00:01]}
51. Kxh3 {[%clk 0:00:18.1]} 51... Bc4 {[%clk 0:00:01.6]} 52. Kg3 {[%clk
0:00:19]} 52... Kb4 {[%clk 0:00:02]} 53. Kf4 {[%clk 0:00:19.9]} 53... Kc3 {[%clk
0:00:02.9]} 54. Rd6 {[%clk 0:00:19]} 54... Ba2 {[%clk 0:00:02.7]} 55. Ke3 {[%clk
0:00:19.9]} 55... Kb2 {[%clk 0:00:02.9]} 56. Rc6 {[%clk 0:00:19.9]} 56... Ka1
{[%clk 0:00:02.9]} 57. Rb6 {[%clk 0:00:19.7]} 57... Bb1 {[%clk 0:00:02.8]} 58.
Kd2 {[%clk 0:00:20.6]} 58... Ba2 {[%clk 0:00:03.1]} 59. Kc3 {[%clk 0:00:20.7]}
59... Bb1 {[%clk 0:00:03]} 60. Kb3 {[%clk 0:00:20.4]} 60... Ba2+ {[%clk
0:00:03.1]} 61. Ka3 {[%clk 0:00:20.8]} 61... Bb1 {[%clk 0:00:02.9]} 62. Rd6
{[%clk 0:00:20.7]} 62... Ba2 {[%clk 0:00:02.7]} 63. Rd2 {[%clk 0:00:21.2]} 63...
Bb1 {[%clk 0:00:02.6]} 64. Rf2 {[%clk 0:00:21.4]} 64... Bd3 {[%clk 0:00:02.6]}
65. Kb3 {[%clk 0:00:21.2]} 65... Bb1 {[%clk 0:00:02.3]} 66. Kc3 {[%clk
0:00:20.8]} 66... Ba2 {[%clk 0:00:01.8]} 67. Re2 {[%clk 0:00:20.5]} 67... Bb1
{[%clk 0:00:01.7]} 68. Re5 {[%clk 0:00:20.6]} 68... Ba2 {[%clk 0:00:01.5]} 69.
Rb5 {[%clk 0:00:21.1]} 69... Bb1 {[%clk 0:00:01.7]} 70. Ra5+ {[%clk 0:00:20.5]}
70... Ba2 {[%clk 0:00:02]} 71. Re5 {[%clk 0:00:19.1]} 71... Bb1 {[%clk
0:00:01.6]} 72. Re2 {[%clk 0:00:19.5]} 72... Ba2 {[%clk 0:00:01.6]} 73. Kc2
{[%clk 0:00:20.1]} 73... Bb1+ {[%clk 0:00:01.8]} 74. Kb3 {[%clk 0:00:20.6]}
74... Bd3 {[%clk 0:00:01]} 75. Ka3 {[%clk 0:00:21.5]} 75... Bxe2 {[%clk
0:00:01]} 1/2-1/2

[Event "Early-Titled-Tuesday-Blitz-May-28-2024"]
[Site "Chess.com"]
[Date "2024.05.28"]
[Round "8"]
[White "Muracle"]
[Black "Smiechu"]
[Result "1/2-1/2"]
[WhiteElo "2580"]
[BlackElo "2453"]
[TimeControl "180+1"]
[EndTime "9:31:48 PDT"]
[Termination "Game drawn by repetition"]

1. d4 {[%clk 0:03:00.9]} 1... Nf6 {[%clk 0:02:59]} 2. Nf3 {[%clk 0:03:01.2]}
2... c5 {[%clk 0:02:58.6]} 3. d5 {[%clk 0:02:59.3]} 3... e6 {[%clk 0:02:58.7]}
4. c4 {[%clk 0:02:58.8]} 4... exd5 {[%clk 0:02:58.7]} 5. cxd5 {[%clk 0:02:59.7]}
5... d6 {[%clk 0:02:59.3]} 6. Nc3 {[%clk 0:02:55.9]} 6... g6 {[%clk 0:02:59.4]}
7. g3 {[%clk 0:02:56]} 7... Bg7 {[%clk 0:02:59.5]} 8. Bg2 {[%clk 0:02:56.5]}
8... O-O {[%clk 0:03:00.1]} 9. O-O {[%clk 0:02:57]} 9... Re8 {[%clk 0:03:00.6]}
10. Nd2 {[%clk 0:02:36.3]} 10... Nbd7 {[%clk 0:02:58.1]} 11. Nc4 {[%clk
0:02:33.9]} 11... Ne5 {[%clk 0:02:49.9]} 12. Nxe5 {[%clk 0:02:34]} 12... Rxe5
{[%clk 0:02:49.6]} 13. e4 {[%clk 0:02:34.6]} 13... a6 {[%clk 0:02:47.1]} 14. a4
{[%clk 0:02:31]} 14... Rb8 {[%clk 0:02:40.2]} 15. h3 {[%clk 0:02:13.3]} 15... b5
{[%clk 0:02:35.4]} 16. axb5 {[%clk 0:02:11.9]} 16... axb5 {[%clk 0:02:36.3]} 17.
f4 {[%clk 0:02:12.5]} 17... Re8 {[%clk 0:02:35]} 18. e5 {[%clk 0:01:57.7]} 18...
Nd7 {[%clk 0:02:21.2]} 19. e6 {[%clk 0:01:52.6]} 19... Nf6 {[%clk 0:02:18.5]}
20. f5 {[%clk 0:01:17]} 20... gxf5 {[%clk 0:02:17.1]} 21. Ra7 {[%clk 0:01:06.1]}
21... fxe6 {[%clk 0:02:08.7]} 22. dxe6 {[%clk 0:01:05.1]} 22... Bxe6 {[%clk
0:02:08.6]} 23. Bg5 {[%clk 0:00:57.4]} 23... Qb6 {[%clk 0:01:56.5]} 24. Rxg7+
{[%clk 0:00:14.2]} 24... Kxg7 {[%clk 0:01:56.4]} 25. g4 {[%clk 0:00:13.9]} 25...
c4+ {[%clk 0:01:36.8]} 26. Kh1 {[%clk 0:00:13.4]} 26... Ne4 {[%clk 0:01:25.4]}
27. Nxe4 {[%clk 0:00:06]} 27... fxe4 {[%clk 0:01:22.8]} 28. Qd2 {[%clk
0:00:04.9]} 28... Kg8 {[%clk 0:00:55.1]} 29. Bh6 {[%clk 0:00:04.6]} 29... Qc5
{[%clk 0:00:48.6]} 30. Rf5 {[%clk 0:00:02]} 30... Bxf5 {[%clk 0:00:40.9]} 31.
gxf5 {[%clk 0:00:01.7]} 31... Qxf5 {[%clk 0:00:36.5]} 32. Qxd6 {[%clk
0:00:01.9]} 32... Qe6 {[%clk 0:00:21.7]} 33. Qf4 {[%clk 0:00:02.2]} 33... Rf8
{[%clk 0:00:12.2]} 34. Qg5+ {[%clk 0:00:01.4]} 34... Qg6 {[%clk 0:00:12.1]} 35.
Qd5+ {[%clk 0:00:02.1]} 35... Kh8 {[%clk 0:00:06]} 36. Be3 {[%clk 0:00:01.9]}
36... h6 {[%clk 0:00:01.7]} 37. Bxe4 {[%clk 0:00:01.4]} 37... Qg7 {[%clk
0:00:01]} 38. Bd4 {[%clk 0:00:01.6]} 38... Rg8 {[%clk 0:00:01]} 39. Bxg7+ {[%clk
0:00:01.5]} 39... Rxg7 {[%clk 0:00:01.9]} 40. Qe5 {[%clk 0:00:02.2]} 40... Rg8
{[%clk 0:00:02.5]} 41. Bf5 {[%clk 0:00:01.7]} 41... h5 {[%clk 0:00:02.2]} 42.
Bg4 {[%clk 0:00:01.2]} 42... hxg4 {[%clk 0:00:02.1]} 43. Qh5+ {[%clk 0:00:01.9]}
43... Rh7 {[%clk 0:00:02.6]} 44. Qe5+ {[%clk 0:00:02.8]} 44... Rgg7 {[%clk
0:00:03]} 45. Qe8+ {[%clk 0:00:03.5]} 45... Rg8 {[%clk 0:00:03.5]} 46. Qe5+
{[%clk 0:00:04.4]} 46... Rhg7 {[%clk 0:00:04.1]} 47. hxg4 {[%clk 0:00:05.3]}
47... Rf8 {[%clk 0:00:03.7]} 48. Qh5+ {[%clk 0:00:05.7]} 48... Kg8 {[%clk
0:00:04.2]} 49. Qd5+ {[%clk 0:00:05.7]} 49... Rgf7 {[%clk 0:00:04.6]} 50. Qxb5
{[%clk 0:00:06.6]} 50... Kg7 {[%clk 0:00:05.1]} 51. Qe5+ {[%clk 0:00:06.6]}
51... Rf6 {[%clk 0:00:05.4]} 52. Qc7+ {[%clk 0:00:06.5]} 52... Kg6 {[%clk
0:00:05.5]} 53. Qxc4 {[%clk 0:00:07.2]} 53... Rf4 {[%clk 0:00:05.4]} 54. Qe6+
{[%clk 0:00:07.3]} 54... Kg5 {[%clk 0:00:05.6]} 55. Qe7+ {[%clk 0:00:06.3]}
55... R8f6 {[%clk 0:00:05.5]} 56. Qg7+ {[%clk 0:00:06.4]} 56... Kh4 {[%clk
0:00:05.1]} 57. Qh6+ {[%clk 0:00:05.6]} 57... Kg3 {[%clk 0:00:04.9]} 58. Qh2+
{[%clk 0:00:05.7]} 58... Kxg4 {[%clk 0:00:05.4]} 59. Qg2+ {[%clk 0:00:06.3]}
59... Kf5 {[%clk 0:00:05.7]} 60. Qd5+ {[%clk 0:00:06.9]} 60... Kg4 {[%clk
0:00:06]} 61. Qg2+ {[%clk 0:00:07.2]} 61... Kh5 {[%clk 0:00:06.1]} 62. Qe2+
{[%clk 0:00:05.7]} 62... Rg4 {[%clk 0:00:06.1]} 63. Qe8+ {[%clk 0:00:05.8]}
63... Kg5 {[%clk 0:00:06.1]} 64. Qe5+ {[%clk 0:00:05.3]} 64... Rf5 {[%clk
0:00:06]} 65. Qg7+ {[%clk 0:00:05.7]} 65... Kf4 {[%clk 0:00:06.2]} 66. Qd4+
{[%clk 0:00:05.9]} 66... Kg5 {[%clk 0:00:06.2]} 67. Qg7+ {[%clk 0:00:06.1]}
67... Kf4 {[%clk 0:00:06.2]} 68. Qd4+ {[%clk 0:00:06.5]} 68... Kg3 {[%clk
0:00:06.4]} 69. Qg1+ {[%clk 0:00:05.9]} 69... Kh4 {[%clk 0:00:06.4]} 70. Qe1+
{[%clk 0:00:06.1]} 70... Rg3 {[%clk 0:00:05.9]} 71. Qe4+ {[%clk 0:00:05.9]}
71... Kg5 {[%clk 0:00:06.1]} 72. Qe7+ {[%clk 0:00:06.1]} 72... Kf4 {[%clk
0:00:06.2]} 73. Qd6+ {[%clk 0:00:05.9]} 73... Kg4 {[%clk 0:00:06.5]} 74. Qg6+
{[%clk 0:00:06.1]} 74... Rg5 {[%clk 0:00:06.5]} 75. Qe4+ {[%clk 0:00:06.7]}
75... Kh5 {[%clk 0:00:06.6]} 76. Qh7+ {[%clk 0:00:07.4]} 76... Kg4 {[%clk
0:00:06.9]} 77. Qe4+ {[%clk 0:00:08]} 77... Kh3 {[%clk 0:00:06.9]} 78. Qh7+
{[%clk 0:00:07.5]} 78... Kg4 {[%clk 0:00:07.2]} 79. Qe4+ {[%clk 0:00:07.7]}
1/2-1/2